fUSD/lending_fUSD_20260205
["ID","MTS","AMOUNT","RATE_DAILY","PERIOD"]
[404574908,1770306642220,-500.0,0.00017973,2]
[404574909,1770306642230,-500.0,0.00017973,2]
[404574910,1770306642244,-500.0,0.00017973,2]
[404574911,1770306642255,-500.0,0.00017973,2]
[404574912,1770306642264,-500.0,0.00017973,2]
[404574913,1770306642274,-500.0,0.00017973,2]
[404574915,1770306642284,-589.24519079,0.00017973,2]
[404574917,1770306642293,-500.0,0.00017973,2]
[404574919,1770306642303,-500.0,0.00017973,2]
[404574921,1770306642313,-500.0,0.00017973,2]
[404574923,1770306642323,-500.0,0.00017973,2]
[404574925,1770306642332,-500.0,0.00017973,2]
[404574927,1770306642342,-500.0,0.00017973,2]
[404574929,1770306642351,-500.0,0.00017973,2]
[404574931,1770306642360,-500.0,0.00017973,2]
[404574933,1770306642370,-500.0,0.00017973,2]
[404574935,1770306642379,-500.0,0.00017973,2]
[404574937,1770306642388,-500.0,0.00017973,2]
[404574939,1770306642397,-500.0,0.00017973,2]
[404574941,1770306642407,-262.39107038,0.00017973,2]
[404574943,1770306642416,-500.0,0.00017973,2]
[404574945,1770306642426,-500.0,0.00017973,2]
[404574947,1770306642436,-500.77752608,0.00017973,2]
[404574949,1770306642445,-500.0,0.00017973,2]
[404574951,1770306642454,-500.0,0.00017973,2]
[404574953,1770306642464,-305.84785682,0.00017979,2]
[404574955,1770306642474,-1329.5838707,0.0001799,3]
[404574957,1770306642483,-6635.2220609,0.0001799,2]
[404574959,1770306642501,-151.0,0.00017997,2]
[404574961,1770306642510,-1089.42879513,0.00017999,5]
[404574963,1770306642519,-451.36197851,0.00017999,2]
[404574965,1770306642529,-300.0,0.00017999,2]
[404574967,1770306642542,-300.0,0.00017999,2]
[404574969,1770306642551,-300.0,0.00017999,2]
[404574971,1770306642562,-300.0,0.00017999,2]
[404574974,1770306642572,-1029.64977956,0.00017999,5]
[404574976,1770306642583,-1029.64977958,0.00017999,5]
[404574979,1770306642593,-1029.64977956,0.00017999,5]
[404574982,1770306642602,-1029.64977956,0.00017999,5]
[404574984,1770306642612,-1029.64977956,0.00017999,5]
[404574986,1770306642621,-1029.64977956,0.00017999,5]
[404574988,1770306642630,-1029.64977956,0.00017999,5]
[404574990,1770306642640,-2659480.57005029,0.00018,2]
[404574995,1770306642679,-453.9744069,0.00018,2]
[404574997,1770306642690,-1682.9824,0.00018,2]
[404574999,1770306642701,-9973.26344556,0.00018,2]
[404575002,1770306642712,-741.82679849,0.00018,2]
[404575004,1770306642723,-1326.58964746,0.00018,2]
[404575330,1770306645918,-530.23719591,0.00015846,2]
[404575332,1770306645929,-1511.92280409,0.00015846,2]
[404575334,1770306645939,-495.91332241,0.00016858,2]
[404575336,1770306645948,-5878.39749468,0.000179,2]
[404575338,1770306645957,-9774.5922113,0.00018,2]
[404575340,1770306645968,-33450.0,0.00018,2]
[404575342,1770306645979,-19187.38279918,0.00018,2]
[404575345,1770306645994,-459.58986104,0.00018,2]
[404575350,1770306646034,-1129547.12060587,0.00018,2]
[404575352,1770306646048,-674875.34801524,0.00018,2]
[404575354,1770306646062,-193713.99697414,0.00018,2]
[404575357,1770306646074,-716.09049688,0.00018,2]
[404575359,1770306646086,-287.36593275,0.00018,2]
[404575485,1770306647156,-1356.0,0.00016645,2]
[404575488,1770306647166,-1434.4119159,0.00018,2]
[404575492,1770306647177,-2648.84988028,0.00018,2]
[404575520,1770306647423,-632.667,0.00018,2]
[404575522,1770306647435,-365580.18912509,0.00018,2]
[404575524,1770306647444,-360878.06299934,0.00018,2]
[404575526,1770306647456,-147061.75266091,0.00018,2]
[404575528,1770306647499,-2681.09432384,0.00018,2]
[404575529,1770306647510,-6541.42469723,0.00018,2]
[404575530,1770306647521,-285.88268626,0.00018,2]
[404575531,1770306647532,-2389.01071264,0.00018,2]
[404575532,1770306647551,-44119.40684828,0.00018,2]
[404575533,1770306647563,-1653.8576705,0.00018,2]
[404575535,1770306647574,-1461.96576,0.00018,2]
[404575646,1770306648643,-903.37699523,0.00016678,2]
[404575648,1770306648653,-1317.0,0.00017648,2]
[404575650,1770306648663,-3094.72300477,0.00018,2]
[404576673,1770306843654,-1000.0,0.00014658,2]
[404576674,1770306843692,-2500.0,0.00014658,2]
[404576692,1770306905495,164.0,0.00014659,2]
[404576693,1770306907179,381.0,0.00014659,2]
[404576695,1770306913751,156.0,0.00014659,2]
[404576697,1770306967485,362.0,0.00014659,2]
[404576698,1770306975275,156.0,0.00014659,2]
[404576700,1770307028139,344.0,0.00014659,2]
[404576701,1770307043711,500.0,0.000146,2]
[404576705,1770307087014,327.0,0.00014659,2]
[404576706,1770307094105,-1131.0,0.00014756,2]
[404576707,1770307094146,-300.0,0.00014756,2]
[404576708,1770307094178,-300.0,0.00014756,2]
[404576709,1770307094212,-300.0,0.00014756,2]
[404576710,1770307094249,-195.0,0.00014756,2]
[404576711,1770307094544,-367.18436696,0.00014756,2]
[404576712,1770307094582,-300.0,0.00014756,2]
[404576713,1770307094623,-300.0,0.00014756,2]
[404576714,1770307094661,-250.0,0.00014757,2]
[404576715,1770307094692,-502.5925885,0.00014757,2]
[404576716,1770307094730,-500.0,0.00014757,2]
[404576717,1770307094766,-500.0,0.00014757,2]
[404576718,1770307095054,-500.0,0.00014757,2]
[404576719,1770307095093,-500.0,0.00014757,2]
[404576720,1770307095131,-500.0,0.00014757,2]
[404576721,1770307095168,-500.0,0.00014757,2]
[404576722,1770307095201,-500.0,0.00014757,2]
[404576723,1770307095239,-233.26,0.00014757,2]
[404576724,1770307095273,-500.0,0.00014757,2]
[404576725,1770307095307,-150.61782351,0.00014757,2]
[404576726,1770307095341,-360.95256819,0.00014821,2]
[404576727,1770307095380,-300.0,0.00014821,2]
[404576728,1770307095418,-202.8249884,0.00014897,2]
[404576729,1770307095451,-166.66,0.0001494,2]
[404576730,1770307095490,-578.37271503,0.00014951,2]
[404576731,1770307099647,-14.63380974,0.00014951,2]
[404576732,1770307099680,-451.36197851,0.00014995,2]
[404576733,1770307099711,-1000.0,0.00015148,2]
[404576734,1770307099741,-166.66,0.00015254,2]
[404576735,1770307099771,-160.0,0.00015338,2]
[404576736,1770307099801,-152.01739561,0.00015437,2]
[404576737,1770307099833,-166.66,0.00015569,2]
[404576738,1770307099864,-500.0,0.00015696,2]
[404576739,1770307099896,-166.66,0.00015883,2]
[404576740,1770307099927,-150.99,0.00016154,2]
[404576741,1770307100114,-3515.89,0.00016154,2]
[404576743,1770307100381,-2968.23,0.00016154,2]
[404576744,1770307100391,-619.35,0.00016154,2]
[404576745,1770307100401,-324.0,0.00016154,2]
[404576746,1770307100411,-420.0,0.00016154,2]
[404576747,1770307100421,-327.0,0.00016197,3]
[404576748,1770307100431,-166.66,0.00016198,2]
[404576750,1770307114264,10000.01,0.00016024,2]
[404576751,1770307114298,10000.01,0.00016024,2]
[404576753,1770307118737,-152.01739561,0.00015437,2]
[404576756,1770307150383,1600.0,0.000156,5]
[404576757,1770307152487,3300.0,0.000157,5]
[404576758,1770307154579,5000.0,0.000158,5]
[404576760,1770307162276,100.01,0.000146,2]
[404576761,1770307162301,399.99,0.000146,2]
[404576762,1770307162559,1000.0,0.00015148,2]
[404576763,1770307162597,1500.0,0.00015696,2]
[404576772,1770307283627,342.82592152,0.000146,2]
[404576773,1770307398315,-164.0,0.00015696,3]
[404576774,1770307398348,-294.0,0.00015696,3]
[404576775,1770307398383,-891.98,0.0001574,2]
[404576776,1770307398417,-289.914301,0.00015872,2]
[404576777,1770307398449,-283.0,0.00015883,2]
[404576778,1770307398660,-3300.01,0.000159,5]
[404576779,1770307400725,-3399.99,0.000159,5]
[404576780,1770307400756,-311.0,0.00015923,2]
[404576781,1770307400791,-300.0,0.00015931,2]
[404576782,1770307400827,-150.0,0.00015931,2]
[404576783,1770307400863,-374.3862965,0.00015932,2]
[404576784,1770307400898,-174.26095373,0.00015932,2]
[404576785,1770307413827,-6647.92210632,0.00015932,2]
[404576788,1770307499298,500.0,0.00015379,2]
[404576796,1770307515964,152.0,0.00014653,4]
[404576797,1770307516338,152.0,0.00013195,3]
[404576800,1770307542437,431.76,0.00015322,2]
[404576801,1770307549713,200.0,0.00015351,2]
[404576808,1770307616658,4627.7,0.00015188,2]
[404576809,1770307630658,1300.0,0.000155,5]
[404576810,1770307761398,157.17407848,0.000146,2]
[404576811,1770307769135,-2600.0,0.000156,5]
[404576812,1770307769158,-372.30347995,0.00015678,2]
[404576813,1770307769179,-1123.1588895,0.00015683,2]
[404576814,1770307769200,-188.0,0.00015696,3]
[404576815,1770307769222,-280.0,0.00015696,3]
[404576816,1770307769243,-624.07276655,0.000157,5]
[404576822,1770307832031,-406.986,0.00015678,2]
[404576823,1770307832043,-27.23421149,0.00015678,2]
[404576824,1770307832053,-367.12551049,0.00015678,2]
[404576825,1770307832065,-404.752,0.00015678,2]
[404576826,1770307832075,-250.0,0.00015678,2]
[404576827,1770307832087,-339.95894278,0.00015678,2]
[404576828,1770307832096,-281.0,0.00015678,2]
[404576829,1770307832106,-266.0,0.00015696,3]
[404576830,1770307832116,-3275.92723345,0.000157,5]
[404576831,1770307832125,-5019.24435687,0.00015732,2]
[404576832,1770307832136,-16394.74810929,0.00015732,2]
[404576833,1770307832147,-44059.33567972,0.00015732,2]
[404576869,1770307838847,-9664.0,0.00015732,2]
[404576870,1770307838859,-310.57144818,0.00015732,2]
[404576871,1770307838872,-2565.67390881,0.00015732,2]
[404576882,1770307840122,-414.93257451,0.00015732,2]
[404576885,1770307840134,-425.30002665,0.00015732,2]
[404576886,1770307840144,-1804.031944,0.00015732,2]
[404576889,1770307840412,-2784.03994496,0.00015732,2]
[404576890,1770307840425,-2915.3457,0.00015732,2]
[404576891,1770307840436,-1963.81615684,0.00015732,2]
[404576892,1770307840448,-3411678.96015017,0.00015732,2]
[404576893,1770307840458,-153.07475092,0.00015778,2]
[404576894,1770307840474,-287.0,0.00015799,2]
[404576895,1770307840484,-5300.0,0.000158,5]
[404576896,1770307840494,-7594.91879455,0.00015832,2]
[404576897,1770307840503,-213.60079787,0.00015832,2]
[404576898,1770307840513,-1737.36149309,0.00015832,2]
[404576899,1770307840524,-150.0,0.00015896,2]
[404576900,1770307840533,-150.0,0.00015896,2]
[404576901,1770307840543,-6600.0,0.000159,5]
[404576902,1770307840553,-189.57,0.00015914,3]
[404576903,1770307840563,-151.0,0.00015921,2]
[404576904,1770307840573,-500.0,0.00015923,2]
[404576905,1770307840583,-500.0,0.00015923,2]
[404576906,1770307840592,-500.0,0.00015923,2]
[404576907,1770307840602,-500.0,0.00015923,2]
[404576908,1770307840611,-453.45948341,0.00015923,2]
[404576909,1770307840621,-500.0,0.00015923,2]
[404576910,1770307840630,-500.0,0.00015923,2]
[404576911,1770307840640,-500.0,0.00015923,2]
[404576912,1770307840649,-500.0,0.00015923,2]
[404576913,1770307840659,-500.0,0.00015923,2]
[404576914,1770307840667,-500.0,0.00015923,2]
[404576915,1770307840677,-1089.42879513,0.00015923,5]
[404576916,1770307840687,-116352.43288003,0.00015932,2]
[404577155,1770307844381,-24486.16549985,0.00015932,2]
[404577157,1770307844391,-150.0,0.00015951,2]
[404577159,1770307844400,-329.0,0.00015958,2]
[404577161,1770307844410,-223.0,0.0001597,2]
[404577163,1770307844419,-2433.58448348,0.00015999,2]
[404577165,1770307844429,-121059.5446881,0.00016,2]
[404577167,1770307844438,-256.701042,0.00016,2]
[404577169,1770307844447,-200.0,0.00016006,2]
[404577171,1770307844457,-160.0,0.00016012,2]
[404577173,1770307844471,-500.0,0.00016014,2]
[404577175,1770307844481,-151.0,0.00016014,2]
[404577177,1770307844491,-151.0,0.00016014,2]
[404577179,1770307844500,-151.0,0.00016014,2]
[404577181,1770307844509,-151.0,0.00016014,2]
[404577183,1770307844519,-151.0,0.00016014,2]
[404577185,1770307844528,-151.0,0.00016014,2]
[404577187,1770307844538,-151.0,0.00016014,2]
[404577190,1770307844549,-151.0,0.00016014,2]
[404577192,1770307844558,-151.0,0.00016014,2]
[404577193,1770307844567,-151.0,0.00016014,2]
[404577195,1770307844576,-151.0,0.00016014,2]
[404577198,1770307844586,-200.0,0.00016014,2]
[404577199,1770307844595,-200.0,0.00016014,2]
[404577201,1770307844605,-5871.986,0.00016023,2]
[404577204,1770307844614,-552.462,0.00016023,2]
[404577206,1770307844624,-434.22021143,0.00016048,2]
[404577208,1770307844633,-7594.91879451,0.00016062,2]
[404577210,1770307844642,-1737.36149302,0.00016062,2]
[404577212,1770307844652,-152.0,0.00016111,5]
[404577214,1770307844662,-248.0,0.00016116,2]
[404577217,1770307844680,-9999.99,0.00016116,2]
[404577219,1770307844694,-282.4058484,0.00016198,2]
[404577248,1770307844957,-7594.91879451,0.00016292,2]
[404577251,1770307844974,-1737.36149302,0.00016292,2]
[404577253,1770307844985,-721.12765535,0.00016317,2]
[404577255,1770307844994,-2000.0,0.00016317,2]
[404577257,1770307845004,-174.61919141,0.00016317,2]
[404577259,1770307845013,-209.40437684,0.00016317,2]
[404577261,1770307845022,-2000.0,0.00016317,2]
[404577263,1770307845031,-578.20924308,0.00016317,2]
[404577265,1770307845039,-209.40437684,0.00016317,2]
[404577267,1770307845049,-209.40437684,0.00016317,2]
[404577269,1770307845059,-322.6107,0.00016317,2]
[404577271,1770307845068,-217.15233878,0.00016372,2]
[404577273,1770307845077,-500.0,0.000164,2]
[404577275,1770307845086,-434.22021143,0.00016419,2]
[404577277,1770307845095,-225.18697532,0.00016427,2]
[404577279,1770307845105,-151.0,0.00016435,2]
[404577281,1770307845113,-800.0,0.00016438,2]
[404577283,1770307845122,-233.51889341,0.00016482,2]
[404577285,1770307845131,-166.66,0.00016512,2]
[404577286,1770307845140,-7594.91879451,0.00016521,2]
[404577287,1770307845149,-1737.36149302,0.00016521,2]
[404577288,1770307845159,-891.98,0.00016527,2]
[404577289,1770307845166,-242.15909246,0.00016537,2]
[404577290,1770307845175,-251.11897888,0.00016592,2]
[404577291,1770307845183,-773.71,0.0001663,2]
[404577292,1770307845192,-260.4103811,0.00016647,2]
[404577293,1770307845201,-158.47,0.00016663,2]
[404577294,1770307845209,-500.0,0.00016685,2]
[404577295,1770307845221,-23823.29,0.00016698,2]
[404577296,1770307845230,-270.0455652,0.00016702,2]
[404577297,1770307845239,-7594.91879451,0.00016751,2]
[404577298,1770307845248,-1737.36149302,0.00016751,2]
[404577300,1770307845257,-280.03725112,0.00016757,2]
[404577302,1770307845267,-1361.83645327,0.00016789,2]
[404577304,1770307845276,-434.22021143,0.00016789,2]
[404577306,1770307845285,-290.39862941,0.00016812,2]
[404577308,1770307845294,-675.16,0.00016813,2]
[404577310,1770307845303,-1000.0,0.00016861,2]
[404577312,1770307845312,-181.08010149,0.00016865,2]
[404577314,1770307845322,-250.8707982,0.00016865,2]
[404577317,1770307845331,-2000.0,0.00016865,2]
[404577319,1770307845340,-217.15233878,0.00016865,2]
[404577320,1770307845350,-301.1433787,0.00016867,2]
[404577322,1770307845359,-775.48,0.00016904,2]
[404577325,1770307845369,-7594.91879451,0.00016981,2]
[404577327,1770307845378,-1737.36149302,0.00016981,2]
[404577329,1770307845387,-500.0,0.00017,2]
[404577331,1770307845397,-2330.42917138,0.00017,3]
[404577332,1770307845406,-1133.73,0.00017061,2]
[404577334,1770307845415,-300.0,0.00017113,2]
[404577336,1770307845425,-300.0,0.00017113,2]
[404577338,1770307845434,-119814.3768711,0.00017114,2]
[404577340,1770307845443,-434.22021143,0.00017159,2]
[404577342,1770307845452,-250.0,0.0001716,2]
[404577344,1770307845461,-266.0,0.0001718,3]
[404577347,1770307845476,-14857.0,0.00017211,2]
[404577348,1770307845486,-7594.91879451,0.00017211,2]
[404577351,1770307845495,-1737.36149302,0.00017211,2]
[404577352,1770307845504,-250.0,0.00017246,2]
[404577354,1770307845513,-300.0,0.00017246,2]
[404577357,1770307845523,-2500.0,0.00017246,2]
[404577358,1770307845533,-250.0,0.00017266,2]
[404577361,1770307845543,-300.0,0.00017266,2]
[404577363,1770307845554,-600.0,0.00017266,2]
[404577365,1770307845564,-200.0,0.00017266,2]
[404577367,1770307845573,-200.0,0.00017266,2]
[404577369,1770307845583,-200.0,0.00017266,2]
[404577371,1770307845592,-213.35859068,0.00017266,2]
[404577373,1770307845601,-600.0,0.00017266,2]
[404577375,1770307845611,-253.29548484,0.00017266,2]
[404577377,1770307845621,-283.574347,0.00017266,2]
[404577379,1770307845630,-891.98,0.00017314,2]
[404577380,1770307845639,-1300.0,0.000174,6]
[404577382,1770307845649,-1276.706,0.00017408,2]
[404577384,1770307845658,-187.78006525,0.00017413,2]
[404577386,1770307845667,-2000.0,0.00017413,2]
[404577388,1770307845677,-225.18697532,0.00017413,2]
[404577390,1770307845686,-7594.91879451,0.0001744,2]
[404577392,1770307845695,-1737.36149302,0.0001744,2]
[404577394,1770307845704,-1123.1588895,0.00017493,2]
[404577396,1770307845718,-1300.0,0.000175,6]
[404577398,1770307845727,-153.07475092,0.00017522,2]
[404577401,1770307845737,-1234.0,0.00017526,2]
[404577404,1770307845746,-434.22021143,0.0001753,2]
[404577406,1770307845756,-1207.735,0.00017541,2]
[404577408,1770307845765,-917.837,0.00017541,2]
[404577410,1770307845775,-1317.0,0.00017541,2]
[404577412,1770307845785,-2466.995,0.00017541,2]
[404577414,1770307845794,-3254.0,0.00017541,2]
[404577416,1770307845804,-6581.0,0.00017541,2]
[404577418,1770307845814,-152.0,0.00017569,6]
[404577420,1770307845824,-1234.0,0.00017586,2]
[404577422,1770307845834,-1300.0,0.000176,6]
[404577424,1770307845843,-1234.0,0.0001763,2]
[404577426,1770307845853,-1000.0,0.0001767,2]
[404577429,1770307845862,-7594.91879451,0.0001767,2]
[404577431,1770307845872,-1737.36149302,0.0001767,2]
[404577433,1770307845882,-308.55384804,0.00017671,2]
[404577435,1770307845891,-300.0,0.00017671,2]
[404577437,1770307845902,-147486.5204862,0.00017672,2]
[404577439,1770307845915,-334.5472959,0.00017686,2]
[404577441,1770307845924,-1000.0,0.00017694,2]
[404577443,1770307845934,-1000.0,0.00017694,2]
[404577445,1770307845944,-150.0,0.00017698,2]
[404577447,1770307845954,-150.0,0.00017698,2]
[404577449,1770307845963,-150.0,0.00017698,2]
[404577451,1770307845978,-150.0,0.00017698,2]
[404577454,1770307845989,-216.96054121,0.00017698,2]
[404577456,1770307845999,-500.0,0.00017698,2]
[404577458,1770307846008,-150.0,0.00017698,2]
[404577460,1770307846018,-500.0,0.00017698,2]
[404577462,1770307846027,-500.0,0.00017698,2]
[404577464,1770307846036,-500.0,0.00017698,2]
[404577466,1770307846045,-150.0,0.00017698,2]
[404577468,1770307846055,-150.0,0.00017698,2]
[404577470,1770307846065,-150.0,0.00017698,2]
[404577472,1770307846075,-500.0,0.00017698,2]
[404577474,1770307846084,-150.0,0.00017698,2]
[404577476,1770307846094,-500.0,0.00017698,2]
[404577478,1770307846103,-500.0,0.00017698,2]
[404577480,1770307846113,-500.0,0.00017698,2]
[404577482,1770307846122,-150.0,0.00017698,2]
[404577484,1770307846131,-1300.0,0.000177,6]
[404577486,1770307846141,-150.0,0.00017706,2]
[404577488,1770307846151,-1000.0,0.00017706,2]
[404577490,1770307846160,-150.0,0.00017728,2]
[404577492,1770307846170,-150.0,0.00017735,2]
[404577494,1770307846179,-150.0,0.00017737,2]
[404577496,1770307846189,-150.0,0.00017748,2]
[404577498,1770307846199,-150.0,0.00017748,2]
[404577500,1770307846209,-171.0,0.00017748,2]
[404577502,1770307846223,-150.0,0.00017748,2]
[404577504,1770307846233,-150.0,0.00017748,2]
[404577506,1770307846241,-150.0,0.00017748,2]
[404577508,1770307846250,-150.0,0.00017748,2]
[404577510,1770307846259,-150.0,0.00017748,2]
[404577512,1770307846268,-150.0,0.00017748,2]
[404577514,1770307846277,-150.0,0.00017748,2]
[404577516,1770307846286,-1341.461,0.00017748,2]
[404577518,1770307846295,-1411.0,0.00017748,2]
[404577520,1770307846305,-616.0,0.00017748,2]
[404577522,1770307846314,-3482.0,0.00017748,2]
[404577524,1770307846328,-251.149,0.00017748,2]
[404577526,1770307846337,-150.0,0.0001775,2]
[404577528,1770307846347,-150.0,0.00017753,2]
[404577530,1770307846356,-150.0,0.00017753,2]
[404577532,1770307846366,-150.0,0.00017753,2]
[404577535,1770307846375,-150.0,0.00017753,2]
[404577537,1770307846385,-500.0,0.00017753,2]
[404577538,1770307846395,-150.0,0.00017753,2]
[404577541,1770307846405,-500.0,0.00017753,2]
[404577543,1770307846416,-500.0,0.00017753,2]
[404577545,1770307846426,-502.70297882,0.00017753,2]
[404577547,1770307846435,-202.65824517,0.00017753,2]
[404577549,1770307846445,-500.0,0.00017753,2]
[404577551,1770307846455,-500.0,0.00017753,2]
[404577553,1770307846467,-501.68337688,0.00017753,2]
[404577555,1770307846476,-500.0,0.00017753,2]
[404577557,1770307846486,-150.0,0.00017753,2]
[404577559,1770307846496,-150.0,0.00017757,2]
[404577561,1770307846505,-150.0,0.00017763,2]
[404577563,1770307846515,-374.3862965,0.00017769,2]
[404577565,1770307846524,-1000.0,0.00017777,2]
[404577567,1770307846534,-1000.0,0.00017791,2]
[404577569,1770307846544,-150.0,0.00017797,2]
[404577571,1770307846554,-1000.0,0.00017797,2]
[404577573,1770307846564,-2000.0,0.000178,2]
[404577575,1770307846574,-1659.0,0.000178,6]
[404577577,1770307846584,-1000.0,0.00017806,2]
[404577579,1770307846596,-150.0,0.00017808,2]
[404577581,1770307846605,-200.52167187,0.00017808,2]
[404577583,1770307846616,-202.76989471,0.00017808,2]
[404577586,1770307846625,-150.0,0.00017808,2]
[404577588,1770307846635,-500.0,0.00017808,2]
[404577590,1770307846644,-200.0,0.00017808,2]
[404577591,1770307846655,-500.0,0.00017808,2]
[404577593,1770307846664,-500.0,0.00017808,2]
[404577595,1770307846675,-500.0,0.00017808,2]
[404577597,1770307846685,-500.0,0.00017808,2]
[404577600,1770307846695,-500.0,0.00017808,2]
[404577602,1770307846705,-150.0,0.00017808,2]
[404577604,1770307846716,-500.0,0.00017808,2]
[404577606,1770307846726,-150.0,0.00017809,2]
[404577608,1770307846736,-150.0,0.00017828,2]
[404577610,1770307846745,-150.0,0.00017835,2]
[404577612,1770307846756,-1000.0,0.00017837,2]
[404577614,1770307846766,-1000.0,0.00017845,2]
[404577616,1770307846776,-150.0,0.00017846,2]
[404577618,1770307846787,-150.0,0.00017848,2]
[404577620,1770307846796,-200.0,0.00017856,2]
[404577622,1770307846806,-1234.0,0.00017856,2]
[404577624,1770307846815,-150.0,0.00017862,2]
[404577626,1770307846825,-150.0,0.00017862,2]
[404577628,1770307846834,-500.0,0.00017862,2]
[404577630,1770307846844,-500.0,0.00017862,2]
[404577632,1770307846854,-500.0,0.00017862,2]
[404577634,1770307846863,-500.0,0.00017862,2]
[404577636,1770307846873,-500.0,0.00017862,2]
[404577638,1770307846882,-500.0,0.00017862,2]
[404577640,1770307846893,-150.0,0.00017862,2]
[404577642,1770307846902,-500.0,0.00017863,2]
[404577644,1770307846915,-150.0,0.00017867,2]
[404577646,1770307846925,-150.0,0.00017888,2]
[404577648,1770307846934,-150.0,0.00017889,2]
[404577650,1770307846945,-150.0,0.00017894,2]
[404577652,1770307846955,-150.0,0.00017896,2]
[404577654,1770307846966,-173.45848611,0.00017899,2]
[404577657,1770307846976,-500.0,0.000179,2]
[404577658,1770307846986,-1894.47596363,0.000179,3]
[404577661,1770307846996,-150.0,0.000179,2]
[404577663,1770307847006,-7594.91879451,0.000179,2]
[404577665,1770307847015,-213.60079786,0.000179,2]
[404577667,1770307847025,-1737.36149302,0.000179,2]
[404577669,1770307847034,-1361.83645327,0.000179,2]
[404577670,1770307847044,-434.22021143,0.000179,2]
[404577673,1770307847054,-150.0,0.00017905,2]
[404577675,1770307847064,-150.0,0.00017908,2]
[404577677,1770307847073,-215.82409539,0.00017917,2]
[404577679,1770307847083,-220.49203217,0.00017917,2]
[404577680,1770307847092,-191.0,0.00017917,2]
[404577683,1770307847102,-500.0,0.00017917,2]
[404577685,1770307847113,-500.0,0.00017917,2]
[404577687,1770307847123,-500.0,0.00017917,2]
[404577689,1770307847133,-500.0,0.00017917,2]
[404577691,1770307847142,-500.0,0.00017917,2]
[404577693,1770307847152,-500.0,0.00017917,2]
[404577695,1770307847162,-150.0,0.00017917,2]
[404577697,1770307847171,-500.0,0.00017918,2]
[404577699,1770307847181,-150.0,0.00017923,2]
[404577701,1770307847190,-150.0,0.00017937,2]
[404577703,1770307847199,-150.0,0.00017944,2]
[404577705,1770307847209,-150.0,0.00017953,2]
[404577707,1770307847220,-150.0,0.0001796,2]
[404577709,1770307847229,-194.72792766,0.00017961,2]
[404577711,1770307847239,-2000.0,0.00017961,2]
[404577713,1770307847248,-233.51889341,0.00017961,2]
[404577715,1770307847257,-1000.0,0.00017964,2]
[404577717,1770307847266,-150.0,0.00017971,2]
[404577719,1770307847276,-500.0,0.00017972,2]
[404577721,1770307847286,-440.0,0.00017972,2]
[404577723,1770307847295,-372.0498966,0.00017972,2]
[404577725,1770307847305,-500.0,0.00017972,2]
[404577727,1770307847314,-500.0,0.00017972,2]
[404577729,1770307847323,-500.0,0.00017972,2]
[404577731,1770307847334,-250.0,0.00017972,2]
[404577733,1770307847344,-500.0,0.00017972,2]
[404577735,1770307847354,-500.0,0.00017973,2]
[404577737,1770307847363,-500.0,0.00017973,2]
[404577739,1770307847373,-500.0,0.00017973,2]
[404577741,1770307847382,-500.0,0.00017973,2]
[404577743,1770307847392,-500.0,0.00017973,2]
[404577745,1770307847401,-500.0,0.00017973,2]
[404577748,1770307847411,-500.0,0.00017973,2]
[404577751,1770307847421,-500.0,0.00017973,2]